fUST/lending_fUST_20240416
["ID","MTS","AMOUNT","RATE_DAILY","PERIOD"]
[322749901,1713240639639,-1126.872932,0.0003441,2]
[322749903,1713240639648,-1126.872932,0.0003441,2]
[322749905,1713240639658,-223.503295,0.0003441,2]
[322749907,1713240639667,-151.0,0.0003441,2]
[322749908,1713240639676,-151.0,0.0003441,2]
[322749910,1713240639685,-151.0,0.0003441,2]
[322749912,1713240639695,-151.0,0.0003441,2]
[322749914,1713240639705,-151.0,0.0003441,2]
[322749916,1713240639714,-151.0,0.0003441,2]
[322749918,1713240639723,-179.654722,0.0003441,2]
[322749921,1713240639733,-151.0,0.0003441,2]
[322749923,1713240639743,-151.0,0.0003441,2]
[322749925,1713240639752,-151.0,0.0003441,2]
[322749927,1713240639762,-151.0,0.0003441,2]
[322749929,1713240639772,-151.0,0.0003441,2]
[322749930,1713240639782,-151.0,0.0003441,2]
[322749931,1713240639791,-886.534139,0.0003441,2]
[322749932,1713240639800,-886.534139,0.0003441,2]
[322749933,1713240639809,-886.534139,0.0003441,2]
[322749934,1713240639818,-886.534139,0.0003441,2]
[322749935,1713240639830,-886.534139,0.0003441,2]
[322749936,1713240639839,-886.534139,0.0003441,2]
[322749937,1713240639848,-224.419276,0.0003441,2]
[322749938,1713240639858,-224.419276,0.0003441,2]
[322749939,1713240639867,-224.419276,0.0003441,2]
[322749940,1713240639877,-224.419276,0.0003441,2]
[322749941,1713240639886,-224.419276,0.0003441,2]
[322749942,1713240639895,-151.0,0.0003441,2]
[322749943,1713240639904,-224.419276,0.0003441,2]
[322749944,1713240639925,-151.0,0.0003441,2]
[322749945,1713240639934,-151.0,0.0003441,2]
[322749946,1713240639944,-205.180132,0.0003441,2]
[322749947,1713240639953,-151.0,0.0003441,2]
[322749948,1713240639962,-151.0,0.0003441,2]
[322749949,1713240639972,-151.0,0.0003441,2]
[322749950,1713240639981,-5996.60196,0.0003441,2]
[322749951,1713240639990,-5996.60196,0.0003441,2]
[322749952,1713240639999,-5996.60196,0.0003441,2]
[322749953,1713240640008,-5996.60196,0.0003441,2]
[322749954,1713240640018,-5996.60196,0.0003441,2]
[322749955,1713240640026,-5996.60196,0.0003441,2]
[322749956,1713240640035,-206.076704,0.0003441,2]
[322749957,1713240640045,-206.076704,0.0003441,2]
[322749958,1713240640054,-151.0,0.0003441,2]
[322749959,1713240640064,-206.076704,0.0003441,2]
[322749960,1713240640072,-151.729617,0.0003441,2]
[322749961,1713240640083,-206.076704,0.0003441,2]
[322749962,1713240640093,-206.076704,0.0003441,2]
[322749963,1713240640102,-206.076704,0.0003441,2]
[322749964,1713240640111,-151.0,0.0003441,2]
[322749965,1713240640120,-151.0,0.0003441,2]
[322749966,1713240640129,-151.0,0.0003441,2]
[322749967,1713240640138,-151.0,0.0003441,2]
[322749968,1713240640147,-151.0,0.0003441,2]
[322749969,1713240640156,-151.0,0.0003441,2]
[322749970,1713240640165,-151.0,0.0003441,2]
[322749971,1713240640175,-151.0,0.0003441,2]
[322749972,1713240640184,-293.258612,0.0003441,2]
[322749973,1713240640193,-160.175084,0.0003441,2]
[322749974,1713240640202,-160.175084,0.0003441,2]
[322749975,1713240640211,-160.175084,0.0003441,2]
[322749976,1713240640220,-160.175084,0.0003441,2]
[322749977,1713240640230,-160.175084,0.0003441,2]
[322749978,1713240640239,-160.175084,0.0003441,2]
[322749979,1713240640248,-314.409192,0.0003441,2]
[322749980,1713240640258,-314.409192,0.0003441,2]
[322749981,1713240640267,-314.409192,0.0003441,2]
[322749982,1713240640276,-151.0,0.0003441,2]
[322749983,1713240640285,-151.0,0.0003441,2]
[322749984,1713240640294,-151.0,0.0003441,2]
[322749985,1713240640303,-314.409192,0.0003441,2]
[322749986,1713240640313,-314.409192,0.0003441,2]
[322749987,1713240640323,-314.409192,0.0003441,2]
[322749988,1713240640334,-151.0,0.0003441,2]
[322749989,1713240640343,-151.0,0.0003441,2]
[322749990,1713240640352,-151.0,0.0003441,2]
[322749991,1713240640362,-151.0,0.0003441,2]
[322749992,1713240640372,-151.0,0.0003441,2]
[322749994,1713240640384,-151.0,0.0003441,2]
[322749995,1713240640396,-322.664581,0.0003441,2]
[322749997,1713240640412,-322.664581,0.0003441,2]
[322749999,1713240640423,-322.664581,0.0003441,2]
[322750001,1713240640432,-151.14500933,0.00034489,2]
[322750002,1713240640442,-24219.33778399,0.0003449,5]
[322750003,1713240640454,-50038.29301423,0.0003449,2]
[322750004,1713240640467,-151.0,0.0003449,2]
[322750005,1713240640478,-1773.251438,0.0003449,2]
[322750006,1713240640489,-1773.251438,0.0003449,2]
[322750007,1713240640499,-168.289376,0.0003449,2]
[322750008,1713240640508,-168.289376,0.0003449,2]
[322750009,1713240640519,-151.0,0.0003449,2]
[322750010,1713240640529,-151.0,0.0003449,2]
[322750011,1713240640538,-151.0,0.0003449,2]
[322750012,1713240640548,-333.675332,0.0003449,2]
[322750013,1713240640557,-333.675332,0.0003449,2]
[322750014,1713240640567,-189.051219,0.0003449,2]
[322750015,1713240640577,-189.051219,0.0003449,2]
[322750016,1713240640592,-1126.872932,0.0003449,2]
[322750017,1713240640601,-1126.872932,0.0003449,2]
[322750018,1713240640613,-163.309783,0.0003449,2]
[322750019,1713240640623,-151.0,0.0003449,2]
[322750020,1713240640632,-151.0,0.0003449,2]
[322750021,1713240640643,-151.0,0.0003449,2]
[322750022,1713240640653,-886.534139,0.0003449,2]
[322750023,1713240640662,-886.534139,0.0003449,2]
[322750024,1713240640672,-224.419276,0.0003449,2]
[322750025,1713240640681,-224.419276,0.0003449,2]
[322750026,1713240640690,-151.0,0.0003449,2]
[322750027,1713240640700,-151.0,0.0003449,2]
[322750028,1713240640710,-5996.60196,0.0003449,2]
[322750029,1713240640719,-5996.60196,0.0003449,2]
[322750030,1713240640729,-206.076704,0.0003449,2]
[322750031,1713240640740,-206.076704,0.0003449,2]
[322750032,1713240640749,-151.0,0.0003449,2]
[322750033,1713240640758,-151.0,0.0003449,2]
[322750034,1713240640768,-151.0,0.0003449,2]
[322750035,1713240640777,-160.175084,0.0003449,2]
[322750036,1713240640787,-160.175084,0.0003449,2]
[322750037,1713240640797,-160.175084,0.0003449,2]
[322750038,1713240640806,-160.175084,0.0003449,2]
[322750039,1713240640815,-314.409192,0.0003449,2]
[322750040,1713240640825,-314.409192,0.0003449,2]
[322750041,1713240640838,-151.0,0.0003449,2]
[322750042,1713240640847,-151.0,0.0003449,2]
[322750043,1713240640856,-314.409192,0.0003449,2]
[322750044,1713240640865,-314.409192,0.0003449,2]
[322750045,1713240640874,-151.0,0.0003449,2]
[322750046,1713240640883,-151.0,0.0003449,2]
[322750047,1713240640891,-151.0,0.0003449,2]
[322750048,1713240640900,-151.0,0.0003449,2]
[322750049,1713240640910,-322.664581,0.0003449,2]
[322750050,1713240640920,-322.664581,0.0003449,2]
[322750051,1713240640929,-6421.89554137,0.00034555,10]
[322750052,1713240640939,-189.051219,0.00034555,2]
[322750053,1713240640948,-189.051219,0.00034555,2]
[322750054,1713240640959,-1126.872932,0.00034555,2]
[322750055,1713240640969,-1126.872932,0.00034555,2]
[322750056,1713240640979,-168.05571199,0.00034646,3]
[322750057,1713240640988,-586.0,0.000347,2]
[322750058,1713240640997,-1000.0,0.00034764,2]
[322750059,1713240641006,-1000.0,0.00034765,2]
[322750060,1713240641015,-205.0,0.0003482,9]
[322750061,1713240641025,-10000.0,0.00034841,2]
[322750062,1713240641034,-151.0,0.00034841,2]
[322750063,1713240641044,-151.0,0.00034841,2]
[322750064,1713240641053,-151.0,0.00034841,2]
[322750065,1713240641062,-886.534139,0.00034841,2]
[322750066,1713240641071,-886.534139,0.00034841,2]
[322750067,1713240641082,-224.419276,0.00034841,2]
[322750068,1713240641091,-224.419276,0.00034841,2]
[322750069,1713240641100,-151.0,0.00034841,2]
[322750070,1713240641109,-151.0,0.00034841,2]
[322750071,1713240641118,-5996.60196,0.00034841,2]
[322750072,1713240641127,-5996.60196,0.00034841,2]
[322750073,1713240641136,-206.076704,0.00034841,2]
[322750074,1713240641146,-206.076704,0.00034841,2]
[322750075,1713240641155,-151.0,0.00034841,2]
[322750076,1713240641164,-151.0,0.00034841,2]
[322750077,1713240641278,-160.175084,0.00034841,2]
[322750078,1713240641288,-160.175084,0.00034841,2]
[322750079,1713240641298,-314.409192,0.00034841,2]
[322750080,1713240641308,-151.0,0.00034841,2]
[322750081,1713240641317,-314.409192,0.00034841,2]
[322750082,1713240641326,-207.79506,0.00034841,2]
[322750083,1713240641339,-154.990238,0.00034841,2]
[322750084,1713240641349,-1000.0,0.00034869,2]
[322750085,1713240641358,-2131.0982395,0.00034897,2]
[322750086,1713240641368,-177.0,0.000349,9]
[322750087,1713240641377,-150.0,0.000349,2]
[322750088,1713240641386,-491.0,0.000349,2]
[322750089,1713240641396,-1000.0,0.000349,16]
[322750090,1713240641406,-153.0,0.00034906,2]
[322750091,1713240641419,-306.0,0.00034906,2]
[322750092,1713240641429,-153.0,0.00034906,2]
[322750093,1713240641438,-1000.0,0.00034969,2]
[322750094,1713240641447,-150.5,0.0003497,35]
[322750095,1713240641458,-150.5,0.0003497,35]
[322750096,1713240641467,-150.5,0.0003497,35]
[322750097,1713240641477,-194.0,0.0003497,35]
[322750098,1713240641487,-164.0,0.0003497,35]
[322750099,1713240641497,-3172.0,0.0003497,35]
[322750100,1713240641507,-1000.0,0.00034978,2]
[322750101,1713240641516,-150.5,0.0003498,35]
[322750102,1713240641525,-150.5,0.0003498,35]
[322750103,1713240641535,-150.5,0.0003498,35]
[322750104,1713240641545,-194.0,0.0003498,35]
[322750105,1713240641554,-164.0,0.0003498,35]
[322750106,1713240641564,-3172.0,0.0003498,35]
[322750107,1713240641574,-3200.0,0.0003499,9]
[322750108,1713240641586,-225.101631,0.0003499,2]
[322750109,1713240641594,-151.0,0.0003499,2]
[322750110,1713240641603,-150.5,0.0003499,35]
[322750111,1713240641612,-151.18,0.0003499,35]
[322750112,1713240641621,-150.5,0.0003499,35]
[322750113,1713240641629,-150.5,0.0003499,35]
[322750114,1713240641639,-151.25,0.0003499,35]
[322750115,1713240641648,-151.943823,0.0003499,2]
[322750116,1713240641657,-333.675332,0.0003499,2]
[322750117,1713240641666,-333.675332,0.0003499,2]
[322750118,1713240641676,-189.051219,0.0003499,2]
[322750119,1713240641685,-189.051219,0.0003499,2]
[322750120,1713240641694,-390.92348957,0.0003499,2]
[322750162,1713241629154,-165.3570456,0.00027397,2]
[322750163,1713241629174,-1486.21854147,0.000294,4]
[322750164,1713241644453,-1193.51857983,0.000294,4]
[322750212,1713241832442,-205.79685127,0.00027299,2]
[322750213,1713241832452,-150.0,0.000273,2]
[322750214,1713241832461,-328.308579,0.00027397,2]
[322750215,1713241832470,-249.591475,0.00028675,2]
[322750216,1713241832478,-630.99092472,0.00028734,2]
[322750217,1713241832487,-419.24121859,0.000293,4]
[322750218,1713241832496,-300.0,0.00029397,2]
[322750219,1713241832505,-300.0,0.00029397,2]
[322750220,1713241832514,-307.25288639,0.00029398,2]
[322750221,1713241832523,-159.71520778,0.00029398,2]
[322750222,1713241832531,-77.75285725,0.00029398,2]
[322750223,1713241832543,-77.595964,0.00029398,2]
[322750224,1713241832552,-203.19357762,0.00029398,2]
[322750225,1713241832561,-155.33854424,0.00029398,2]
[322750226,1713241832571,-154.89306986,0.00029398,2]
[322750227,1713241832580,-71.50142828,0.00029398,2]
[322750255,1713241838352,-83.32858361,0.00029398,2]
[322750256,1713241838362,-155.21222557,0.00029398,2]
[322750258,1713241838371,-547.8361094,0.00029398,2]
[322750260,1713241838380,-279.03510671,0.00029398,2]
[322750262,1713241838389,-155.47753732,0.00029398,2]
[322750264,1713241838398,-32.11369605,0.00029398,2]
[322750266,1713241838415,-374.1881175,0.00029398,2]
[322750268,1713241838424,-154.91284734,0.00029398,2]
[322750270,1713241838433,-154.86220244,0.00029398,2]
[322750272,1713241838442,-238.34977028,0.00029398,2]
[322750274,1713241838451,-155.05985086,0.00029398,2]
[322750276,1713241838460,-154.99126194,0.00029398,2]
[322750278,1713241838470,-155.21994929,0.00029398,2]
[322750281,1713241838479,-155.04621144,0.00029398,2]
[322750283,1713241838489,-158.20322397,0.00029398,2]
[322750284,1713241838499,-13769.75147912,0.00029398,2]
[322750287,1713241838508,-867.13535089,0.00029398,2]
[322750289,1713241838519,-155.13343053,0.00029398,2]
[322750291,1713241838531,-237.5156402,0.00029398,2]
[322750293,1713241838542,-155.03463834,0.00029398,2]
[322750295,1713241838554,-154.95416393,0.00029398,2]
[322750296,1713241838564,-156.58383664,0.00029398,2]
[322750299,1713241838574,-8000.0,0.00029399,2]
[322750301,1713241838583,-320.2628787,0.000294,4]
[322750302,1713241838593,-185.09644478,0.000294,2]
[322750304,1713241838602,-100749.83410117,0.000294,14]
[322750306,1713241838611,-755.28547886,0.000294,2]
[322750308,1713241838620,-4000.0,0.000295,4]
[322750310,1713241838629,-3000.0,0.000299,4]
[322750312,1713241838638,-3000.0,0.0003,4]
[322750314,1713241838647,-258.1930107,0.0003,4]
[322750316,1713241838658,-190.2084776,0.0003,4]
[322750319,1713241838668,-250.0,0.00030107,2]
[322750321,1713241838677,-565.06771701,0.00030137,2]
[322750323,1713241838686,-620.54954624,0.00030171,2]
[322750325,1713241838695,-3000.0,0.000305,4]
[322750327,1713241838704,-183.00577448,0.000309,2]
[322750329,1713241838713,-3000.0,0.00031,4]
[322750331,1713241838722,-4000.0,0.00031,4]
[322750333,1713241838731,-10629.16568609,0.00031,5]
[322750335,1713241838740,-250.0,0.00031703,2]
[322750337,1713241838749,-419.24121857,0.00031811,5]
[322750339,1713241838758,-154.79876161,0.0003189,10]
[322750341,1713241838768,-3000.0,0.00032,4]
[322750343,1713241838777,-191.14907978,0.00032,4]
[322750345,1713241838788,-3000.0,0.000321,4]
[322750347,1713241838798,-420.0,0.00032337,2]
[322750349,1713241838806,-3000.0,0.000325,4]
[322750351,1713241838815,-183.00577448,0.00032899,2]
[322750353,1713241838824,-1200.0,0.00033,4]
[322750355,1713241838834,-328.308579,0.00033165,2]
[322750357,1713241838844,-3000.0,0.00034,4]
[322750359,1713241838853,-465.51859638,0.00034,4]
[322750361,1713241838862,-153.0,0.00034192,2]
[322750363,1713241838871,-153.0,0.00034192,2]
[322750365,1713241838880,-153.0,0.00034192,2]
[322750367,1713241838889,-153.0,0.00034192,2]
[322750369,1713241838898,-3000.0,0.000342,2]
[322750371,1713241838911,-500.0,0.00034246,7]
[322750373,1713241838920,-500.0,0.00034246,7]
[322750375,1713241838929,-563.73,0.00034246,7]
[322750377,1713241838938,-500.0,0.00034246,7]
[322750379,1713241838947,-500.0,0.00034246,7]
[322750381,1713241838956,-14821.75,0.00034246,7]
[322750383,1713241838966,-501.75609439,0.00034246,7]
[322750385,1713241838976,-419.24121857,0.00034323,6]
[322750387,1713241838985,-507.66073329,0.00034409,7]
[322750389,1713241838994,-512.46176286,0.00034409,7]
[322750391,1713241839003,-500.0,0.00034409,7]
[322750393,1713241839012,-500.0,0.00034409,7]
[322750395,1713241839025,-500.0,0.00034409,7]
[322750397,1713241839034,-500.0,0.00034409,7]
[322750399,1713241839044,-500.0,0.00034409,7]
[322750401,1713241839053,-500.0,0.00034409,7]
[322750403,1713241839063,-7148.13,0.00034409,7]
[322750405,1713241839072,-500.0,0.00034409,7]
[322750407,1713241839081,-500.0,0.00034409,7]
[322750409,1713241839090,-562.13667539,0.00034409,7]
[322750410,1713241839099,-500.0,0.00034409,7]
[322750413,1713241839108,-500.0,0.00034409,7]
[322750415,1713241839117,-500.0,0.00034409,7]
[322750417,1713241839126,-500.0,0.00034409,7]
[322750419,1713241839135,-500.0,0.00034409,7]
[322750421,1713241839144,-627.47412963,0.00034409,7]
[322750422,1713241839156,-500.0,0.00034409,7]
[322750424,1713241839166,-500.0,0.00034409,7]
[322750426,1713241839175,-500.0,0.00034409,7]
[322750429,1713241839184,-500.0,0.00034409,7]
[322750430,1713241839193,-502.62884344,0.00034409,7]
[322750432,1713241839202,-500.0,0.00034409,7]
[322750434,1713241839211,-500.0,0.00034409,7]
[322750436,1713241839219,-507.45649403,0.00034409,7]
[322750438,1713241839228,-500.0,0.00034409,7]
[322750440,1713241839237,-500.0,0.00034409,7]
[322750442,1713241839246,-500.0,0.00034409,7]
[322750444,1713241839254,-500.0,0.00034409,7]
[322750446,1713241839263,-500.0,0.00034409,7]
[322750448,1713241839272,-500.0,0.00034409,7]
[322750450,1713241839281,-500.0,0.00034409,7]
[322750452,1713241839290,-500.0,0.00034409,7]
[322750454,1713241839299,-502.22281556,0.00034409,7]
[322750456,1713241839307,-922.63,0.00034409,7]
[322750458,1713241839316,-9273.94818094,0.0003441,4]
[322750460,1713241839325,-9273.94818094,0.0003441,4]
[322750462,1713241839334,-9273.94818094,0.0003441,4]
[322750464,1713241839342,-9273.94818094,0.0003441,4]
[322750465,1713241839351,-9273.94818094,0.0003441,4]
[322750467,1713241839361,-9273.94818094,0.0003441,4]
[322750469,1713241839369,-9273.94818094,0.0003441,4]
[322750471,1713241839378,-9273.94818094,0.0003441,4]
[322750473,1713241839387,-9273.94818094,0.0003441,4]
[322750475,1713241839396,-9273.94718094,0.0003441,4]
[322750477,1713241839408,-9673.86876565,0.0003441,4]
[322750479,1713241839417,-2007.4842,0.000345,30]
[322750481,1713241839426,-167.98399902,0.00034646,3]
[322750483,1713241839435,-1000.0,0.00034734,2]
[322750485,1713241839444,-153.0,0.00034757,2]
[322750487,1713241839453,-153.0,0.00034757,2]
[322750489,1713241839461,-153.0,0.00034757,2]
[322750491,1713241839470,-306.0,0.00034757,2]
[322750493,1713241839479,-153.0,0.00034757,2]
[322750495,1713241839488,-153.0,0.00034757,2]
[322750497,1713241839497,-153.0,0.00034757,2]
[322750499,1713241839506,-154.9400408,0.00034757,2]
[322750501,1713241839515,-153.0,0.00034757,2]
[322750503,1713241839524,-153.0,0.00034757,2]
[322750505,1713241839533,-153.0,0.00034757,2]
[322750507,1713241839542,-153.0,0.00034757,2]
[322750509,1713241839550,-153.0,0.00034757,2]
[322750511,1713241839560,-153.0,0.00034757,2]
[322750525,1713241839680,-153.0,0.00034757,2]
[322750528,1713241839693,-153.0,0.00034757,2]
[322750530,1713241839702,-1000.0,0.00034774,2]
[322750532,1713241839712,-586.0,0.000348,2]
[322750534,1713241839721,-205.0,0.0003482,9]
[322750536,1713241839730,-500.0,0.0003484,7]
[322750538,1713241839739,-503.24212008,0.0003484,7]
[322750541,1713241839748,-500.0,0.0003484,7]
[322750543,1713241839757,-500.0,0.0003484,7]
[322750544,1713241839766,-500.0,0.0003484,7]
[322750545,1713241839775,-500.0,0.0003484,7]
[322750546,1713241839787,-1786.5,0.0003484,7]
[322750547,1713241839796,-369.38058882,0.0003484,7]
[322750548,1713241839805,-500.0,0.0003484,7]
[322750549,1713241839814,-500.0,0.0003484,7]
[322750550,1713241839823,-503.50945508,0.0003484,7]
[322750551,1713241839833,-500.0,0.0003484,7]
[322750552,1713241839842,-500.0,0.0003484,7]
[322750553,1713241839851,-500.0,0.0003484,7]
[322750554,1713241839861,-508.13001419,0.0003484,7]
[322750555,1713241839869,-500.0,0.0003484,7]
[322750556,1713241839878,-500.0,0.0003484,7]
[322750557,1713241839887,-500.0,0.0003484,7]
[322750558,1713241839896,-228.53683382,0.0003484,7]
[322750559,1713241839908,-500.0,0.0003484,7]
[322750560,1713241839917,-500.0,0.0003484,7]
[322750561,1713241839925,-500.0,0.0003484,7]
[322750562,1713241839936,-500.0,0.0003484,7]
[322750563,1713241839946,-500.0,0.0003484,7]
[322750564,1713241839955,-500.0,0.0003484,7]
[322750565,1713241839964,-500.0,0.0003484,7]
[322750566,1713241839972,-500.0,0.0003484,7]
[322750567,1713241839982,-500.0,0.0003484,7]
[322750568,1713241839991,-500.0,0.0003484,7]
[322750569,1713241840000,-500.0,0.0003484,7]
[322750571,1713241840009,-500.0,0.0003484,7]
[322750573,1713241840018,-500.0,0.0003484,7]
[322750575,1713241840026,-500.0,0.0003484,7]
[322750577,1713241840035,-504.28369321,0.0003484,7]
[322750579,1713241840044,-500.0,0.0003484,7]
[322750580,1713241840053,-500.0,0.0003484,7]
[322750581,1713241840062,-500.0,0.0003484,7]
[322750582,1713241840071,-500.0,0.0003484,7]
[322750583,1713241840080,-500.0,0.0003484,7]
[322750584,1713241840089,-500.0,0.0003484,7]
[322750585,1713241840097,-500.0,0.0003484,7]
[322750586,1713241840107,-500.0,0.0003484,7]
[322750587,1713241840116,-251.84876367,0.00034851,4]
[322750588,1713241840125,-500.0,0.00034852,7]
[322750589,1713241840133,-500.0,0.00034852,7]
[322750590,1713241840142,-500.0,0.00034852,7]
[322750591,1713241840152,-8107.04,0.00034852,7]
[322750592,1713241840161,-500.0,0.00034852,7]
[322750593,1713241840170,-500.0,0.00034852,7]
[322750594,1713241840179,-500.0,0.00034852,7]
[322750595,1713241840188,-500.0,0.00034852,7]
[322750596,1713241840197,-500.0,0.00034852,7]
[322750597,1713241840206,-500.0,0.00034852,7]
[322750598,1713241840215,-500.0,0.00034852,7]
[322750599,1713241840225,-502.17265242,0.00034852,7]
[322750600,1713241840233,-501.09759957,0.00034852,7]
[322750601,1713241840243,-501.22588106,0.00034852,7]
[322750602,1713241840252,-500.0,0.00034852,7]
[322750603,1713241840261,-3918.29,0.00034852,7]
[322750604,1713241840270,-500.0,0.00034852,7]
[322750605,1713241840279,-500.0,0.00034852,7]
[322750606,1713241840288,-500.0,0.00034852,7]
[322750607,1713241840297,-1000.0,0.00034853,2]
[322750608,1713241840306,-1000.0,0.00034889,2]
[322750609,1713241840315,-503.24070763,0.00034889,7]
[322750610,1713241840324,-500.0,0.00034889,7]
[322750611,1713241840333,-563.73,0.00034889,7]
[322750612,1713241840342,-500.0,0.00034889,7]
[322750613,1713241840351,-500.0,0.00034889,7]
[322750614,1713241840360,-14821.75,0.00034889,7]
[322750615,1713241840369,-183.00577448,0.00034897,2]
[322750616,1713241840378,-2131.0982395,0.00034898,2]
[322750617,1713241840386,-177.0,0.000349,9]
[322750618,1713241840395,-491.0,0.000349,2]
[322750619,1713241840406,-249908.88482018,0.000349,2]
[322750620,1713241840415,-150.0,0.000349,2]
[322750621,1713241840425,-1000.0,0.000349,16]
[322750623,1713241840434,-3172.0,0.0003497,35]
[322750624,1713241840444,-157.0,0.0003497,35]
[322750625,1713241840453,-150.5,0.0003497,35]
[322750626,1713241840462,-164.0,0.0003497,35]
[322750627,1713241840472,-150.5,0.0003497,35]
[322750628,1713241840481,-3172.0,0.0003498,35]
[322750629,1713241840490,-157.0,0.0003498,35]
[322750630,1713241840499,-150.5,0.0003498,35]
[322750631,1713241840508,-164.0,0.0003498,35]
[322750632,1713241840518,-150.5,0.0003498,35]
[322750633,1713241840527,-2827.82860515,0.0003498,120]
[322750635,1713241840536,-297336.96158977,0.0003498,21]
[322750637,1713241840549,-482.50294263,0.0003498,21]
[322750694,1713241844142,-153.0,0.00034757,2]
[322750695,1713241844154,-500.0,0.00034852,7]
[322750696,1713241844163,-794.73642663,0.0003498,21]
[322750697,1713241844255,-107.00717385,0.00034979,4]
[322750698,1713241844266,-308.67816748,0.00034979,4]
[322750699,1713241844275,-21029.56485472,0.0003498,21]
[322750717,1713241846431,-3773.67895464,0.00034852,7]
[322750777,1713242844122,-662.522584,0.00027396,2]
[322750778,1713242844141,-199.830892,0.00027397,2]
[322750779,1713242844161,-56.20564161,0.00027397,2]
[322750866,1713243032970,-176.32383239,0.00027397,2]
[322750868,1713243032980,-166.666666,0.00030907,2]
[322750869,1713243032989,-200.0,0.000316,10]
[322750871,1713243032998,-150.8642222,0.00031616,2]
[322750872,1713243033007,-250.26564092,0.00031616,2]
[322750874,1713243033016,-400.0,0.00031642,2]
[322750876,1713243033027,-10629.16568609,0.00031643,5]
[322750877,1713243033036,-1271.2357582,0.00031644,2]
[322750878,1713243033045,-166.666666,0.00031749,2]
[322750880,1713243033054,-154.86062544,0.0003189,10]
[322750881,1713243033063,-191.14907978,0.00032,4]
[322750883,1713243033072,-301.7284444,0.00032147,4]
[322750884,1713243033081,-11516.94819787,0.0003223,2]
[322750886,1713243033090,-166.666666,0.00032592,2]
[322750888,1713243033099,-603.4568888,0.00032688,7]
[322750890,1713243033108,-153.0,0.00033205,2]
[322750891,1713243033118,-166.84376062,0.00033237,4]
[322750893,1713243033127,-166.666666,0.00033434,2]
[322750895,1713243033139,-1206.9137776,0.00033515,30]
[322750896,1713243033149,-9673.86876565,0.00033642,4]
[322750897,1713243033158,-18547.89636188,0.00033642,4]
[322750899,1713243033167,-18547.89636188,0.00033642,4]
[322750900,1713243033177,-18547.89636188,0.00033642,4]
[322750901,1713243033188,-18547.89636188,0.00033642,4]
[322750902,1713243033197,-9273.94818094,0.00033642,4]
[322750904,1713243033207,-493.03622905,0.00033763,6]
[322750906,1713243033216,-153.0,0.00033863,2]
[322750908,1713243033225,-153.0,0.00033863,2]
[322750909,1713243033234,-153.0,0.00033863,2]
[322750911,1713243033243,-153.0,0.00033863,2]
[322750913,1713243033252,-153.0,0.00033863,2]
[322750914,1713243033261,-500.0,0.00033997,120]
[322750915,1713243033271,-500.0,0.00033997,120]
[322750916,1713243033283,-500.0,0.00033997,120]
[322750917,1713243033292,-63.13879853,0.00033997,120]
[322750978,1713243038820,-436.86120147,0.00033997,120]
[322750980,1713243038829,-150.12781197,0.00033997,120]
[322750986,1713243038878,-349.87218803,0.00033997,120]
[322750988,1713243038887,-500.0,0.00033997,120]
[322750990,1713243038896,-500.0,0.00033997,120]
[322750992,1713243038905,-500.0,0.00033997,120]
[322750994,1713243038915,-500.0,0.00033997,120]
[322750996,1713243038924,-163.0,0.00034,30]
[322750998,1713243038933,-465.51859638,0.00034,4]